[Event "Titled Tuesday Blitz August 08 Early 2023"]
[White "Van Foreest, Jorden"]
[Black "Korchmar, Vasiliy"]
[WhiteFideId "1039784"]
[BlackFideId "24131750"]
[WhiteElo "2986"]
[BlackElo "2704"]
[Result "1-0"]
[Round "3"]
[TimeControl "180+1"]
[Date "2023.08.08"]
[WhiteClock "0:00:37"]
[BlackClock "0:00:00"]
[Board "17"]

1. d4 {[%clk 0:02:59]}  d5 {[%clk 0:02:59]} 2. Nf3 {[%clk 0:02:57]}  Nf6 {[%clk 0:02:59]} 3. e3 {[%clk 0:02:58]}  g6 {[%clk 0:02:56]} 4. c4 {[%clk 0:02:56]}  c6 {[%clk 0:02:51]} 5. Nc3 {[%clk 0:02:54]}  Bg7 {[%clk 0:02:51]} 6. Be2 {[%clk 0:02:54]}  O-O {[%clk 0:02:51]} 7. O-O {[%clk 0:02:55]}  Bg4 {[%clk 0:02:51]} 8. Qb3 {[%clk 0:02:47]}  Qb6 {[%clk 0:02:41]} 9. h3 {[%clk 0:02:47]}  Bxf3 {[%clk 0:02:40]} 10. Bxf3 {[%clk 0:02:48]}  e6 {[%clk 0:02:39]} 11. Bd2 {[%clk 0:02:46]}  Nbd7 {[%clk 0:02:36]} 12. Rac1 {[%clk 0:02:45]}  Rfe8 {[%clk 0:02:33]} 13. Be2 {[%clk 0:02:39]}  Rac8 {[%clk 0:02:23]} 14. Rfd1 {[%clk 0:02:37]}  h5 {[%clk 0:02:14]} 15. Qa3 {[%clk 0:02:23]}  a6 {[%clk 0:02:05]} 16. b4 {[%clk 0:02:20]}  dxc4 {[%clk 0:01:49]} 17. Bxc4 {[%clk 0:02:18]}  e5 {[%clk 0:01:49]} 18. Qb3 {[%clk 0:02:17]}  Re7 {[%clk 0:01:44]} 19. d5 {[%clk 0:02:16]}  cxd5 {[%clk 0:01:24]} 20. Bxd5 {[%clk 0:02:13]}  Nf8 {[%clk 0:01:16]} 21. e4 {[%clk 0:01:55]}  Ne6 {[%clk 0:01:07]} 22. Na4 {[%clk 0:01:42]}  Qd8 {[%clk 0:01:03]} 23. Rxc8 {[%clk 0:01:34]}  Qxc8 {[%clk 0:01:04]} 24. Be3 {[%clk 0:01:33]}  Nxd5 {[%clk 0:00:58]} 25. exd5 {[%clk 0:01:32]}  Nd4 {[%clk 0:00:57]} 26. Bxd4 {[%clk 0:01:26]}  exd4 {[%clk 0:00:58]} 27. d6 {[%clk 0:01:27]}  Re2 {[%clk 0:00:52]} 28. Nc5 {[%clk 0:01:12]}  Qf5 {[%clk 0:00:46]} 29. Qf3 {[%clk 0:01:08]}  Qxf3 {[%clk 0:00:42]} 30. gxf3 {[%clk 0:01:09]}  b6 {[%clk 0:00:10]} 31. d7 {[%clk 0:01:07]}  Bf6 {[%clk 0:00:11]} 32. Nb7 {[%clk 0:01:01]}  Rxa2 {[%clk 0:00:11]} 33. Rxd4 {[%clk 0:01:01]}  a5 {[%clk 0:00:05]} 34. d8=Q+ {[%clk 0:00:51]}  Bxd8 {[%clk 0:00:05]} 35. Rxd8+ {[%clk 0:00:52]}  Kg7 {[%clk 0:00:06]} 36. bxa5 {[%clk 0:00:52]}  bxa5 {[%clk 0:00:06]} 37. Ra8 {[%clk 0:00:53]}  a4 {[%clk 0:00:06]} 38. Ra7 {[%clk 0:00:53]}  a3 {[%clk 0:00:03]} 39. Kg2 {[%clk 0:00:50]}  Ra1 {[%clk 0:00:02]} 40. Nd6 {[%clk 0:00:50]}  a2 {[%clk 0:00:03]} 41. Ne4 {[%clk 0:00:44]}  Kg8 {[%clk 0:00:02]} 42. Nc3 {[%clk 0:00:40]}  Rc1 {[%clk 0:00:03]} 43. Nxa2 {[%clk 0:00:39]}  Ra1 {[%clk 0:00:03]} 44. Ra6 {[%clk 0:00:38]}  Kg7 {[%clk 0:00:03]} 45. Nb4 {[%clk 0:00:38]}  Rb1 {[%clk 0:00:03]} 46. Nd3 {[%clk 0:00:37]}  Rb7 {[%clk 0:00:04]} 47. Ne5 {[%clk 0:00:37]}  Re7 {[%clk 0:00:04]} 48. f4 {[%clk 0:00:37]}  Rb7 {[%clk 0:00:00]} 49. Rd6 {[%clk 0:00:37]} 1-0


[Site "https://www.chess.com"]

[Event "Titled Tuesday Blitz August 08 Early 2023"]
[White "Csonka, Balazs"]
[Black "Puranik, Abhimanyu"]
[WhiteFideId "742910"]
[BlackFideId "5061245"]
[WhiteElo "2701"]
[BlackElo "2985"]
[Result "1-0"]
[Round "3"]
[TimeControl "180+1"]
[Date "2023.08.08"]
[WhiteClock "0:00:06"]
[BlackClock "0:00:08"]
[Board "18"]

1. d4 {[%clk 0:03:00]}  Nf6 {[%clk 0:02:59]} 2. Nf3 {[%clk 0:03:01]}  g6 {[%clk 0:02:59]} 3. c4 {[%clk 0:02:59]}  Bg7 {[%clk 0:02:59]} 4. Nc3 {[%clk 0:03:00]}  d5 {[%clk 0:02:59]} 5. cxd5 {[%clk 0:03:01]}  Nxd5 {[%clk 0:02:59]} 6. e4 {[%clk 0:02:59]}  Nxc3 {[%clk 0:02:59]} 7. bxc3 {[%clk 0:03:00]}  c5 {[%clk 0:03:00]} 8. Bb5+ {[%clk 0:02:58]}  Nd7 {[%clk 0:02:54]} 9. O-O {[%clk 0:02:57]}  O-O {[%clk 0:02:53]} 10. Re1 {[%clk 0:02:57]}  a6 {[%clk 0:02:53]} 11. Bf1 {[%clk 0:02:56]}  b5 {[%clk 0:02:50]} 12. a4 {[%clk 0:02:56]}  b4 {[%clk 0:02:50]} 13. cxb4 {[%clk 0:02:56]}  cxb4 {[%clk 0:02:51]} 14. a5 {[%clk 0:02:56]}  Nb8 {[%clk 0:02:20]} 15. Qa4 {[%clk 0:02:34]}  Bg4 {[%clk 0:02:16]} 16. Be3 {[%clk 0:02:12]}  Bxf3 {[%clk 0:02:12]} 17. gxf3 {[%clk 0:02:12]}  Bxd4 {[%clk 0:02:12]} 18. Red1 {[%clk 0:01:47]}  e5 {[%clk 0:02:11]} 19. Rac1 {[%clk 0:01:48]}  Nd7 {[%clk 0:01:53]} 20. Kh1 {[%clk 0:01:13]}  Qe7 {[%clk 0:01:44]} 21. Rc7 {[%clk 0:01:05]}  Nc5 {[%clk 0:01:35]} 22. Qc6 {[%clk 0:01:01]}  Qd8 {[%clk 0:00:56]} 23. Bxd4 {[%clk 0:00:41]}  Ne6 {[%clk 0:00:56]} 24. Rd7 {[%clk 0:00:42]}  Qxa5 {[%clk 0:00:49]} 25. Ba1 {[%clk 0:00:29]}  Rfd8 {[%clk 0:00:35]} 26. Qd5 {[%clk 0:00:25]}  Qa3 {[%clk 0:00:23]} 27. Qxe5 {[%clk 0:00:10]}  Qxf3+ {[%clk 0:00:21]} 28. Kg1 {[%clk 0:00:11]}  Qg4+ {[%clk 0:00:20]} 29. Bg2 {[%clk 0:00:08]}  Qxd1+ {[%clk 0:00:13]} 30. Rxd1 {[%clk 0:00:09]}  Rxd1+ {[%clk 0:00:12]} 31. Bf1 {[%clk 0:00:09]}  Nd4 {[%clk 0:00:08]} 32. Bxd4 {[%clk 0:00:06]} 1-0


[Site "https://www.chess.com"]

[Event "Titled Tuesday Blitz August 08 Early 2023"]
[White "Alex_Sahakyan2006"]
[Black "Demidov, Mikhail"]
[BlackFideId "4197143"]
[WhiteElo "2696"]
[BlackElo "2965"]
[Result "1-0"]
[Round "3"]
[TimeControl "180+1"]
[Date "2023.08.08"]
[WhiteClock "0:00:22"]
[BlackClock "0:00:08"]
[Board "20"]

1. d4 {[%clk 0:03:00]}  g6 {[%clk 0:02:59]} 2. e4 {[%clk 0:02:58]}  Bg7 {[%clk 0:02:59]} 3. Nc3 {[%clk 0:02:53]}  d6 {[%clk 0:02:59]} 4. Be3 {[%clk 0:02:44]}  a6 {[%clk 0:02:54]} 5. h4 {[%clk 0:02:43]}  h5 {[%clk 0:02:53]} 6. Qd2 {[%clk 0:02:43]}  b5 {[%clk 0:02:52]} 7. Nh3 {[%clk 0:02:43]}  Bb7 {[%clk 0:02:51]} 8. Ng5 {[%clk 0:02:40]}  Nf6 {[%clk 0:02:49]} 9. f3 {[%clk 0:02:36]}  Nbd7 {[%clk 0:02:45]} 10. O-O-O {[%clk 0:02:21]}  e6 {[%clk 0:02:45]} 11. Ne2 {[%clk 0:02:05]}  Qe7 {[%clk 0:02:32]} 12. Nf4 {[%clk 0:02:04]}  Nb6 {[%clk 0:02:32]} 13. Bd3 {[%clk 0:01:49]}  e5 {[%clk 0:02:27]} 14. dxe5 {[%clk 0:01:47]}  dxe5 {[%clk 0:02:24]} 15. Ne2 {[%clk 0:01:39]}  c5 {[%clk 0:02:20]} 16. Qa5 {[%clk 0:01:37]}  Nfd7 {[%clk 0:01:30]} 17. Nc3 {[%clk 0:01:31]}  Bh6 {[%clk 0:01:28]} 18. Nd5 {[%clk 0:01:19]}  Bxd5 {[%clk 0:01:26]} 19. exd5 {[%clk 0:01:19]}  f6 {[%clk 0:01:26]} 20. Bxg6+ {[%clk 0:01:18]}  Kf8 {[%clk 0:01:23]} 21. d6 {[%clk 0:01:11]}  Qd8 {[%clk 0:01:12]} 22. Ne6+ {[%clk 0:01:10]}  Kg8 {[%clk 0:01:12]} 23. Bxh6 {[%clk 0:00:55]}  Qc8 {[%clk 0:01:02]} 24. Bg7 {[%clk 0:00:52]}  Nc4 {[%clk 0:01:01]} 25. Qc7 {[%clk 0:00:50]}  Ne3 {[%clk 0:00:22]} 26. Rd3 {[%clk 0:00:42]}  Nc4 {[%clk 0:00:21]} 27. Rh3 {[%clk 0:00:35]}  Rh7 {[%clk 0:00:21]} 28. Rg3 {[%clk 0:00:30]}  Rxg7 {[%clk 0:00:20]} 29. Nxg7 {[%clk 0:00:28]}  Kxg7 {[%clk 0:00:18]} 30. Bf5+ {[%clk 0:00:28]}  Kh8 {[%clk 0:00:17]} 31. Qxd7 {[%clk 0:00:26]}  Qxd7 {[%clk 0:00:17]} 32. Bxd7 {[%clk 0:00:26]}  Rd8 {[%clk 0:00:17]} 33. Be6 {[%clk 0:00:20]}  Nb6 {[%clk 0:00:17]} 34. d7 {[%clk 0:00:20]}  Na8 {[%clk 0:00:16]} 35. Rg8+ {[%clk 0:00:19]}  Rxg8 {[%clk 0:00:16]} 36. Bxg8 {[%clk 0:00:20]}  Kxg8 {[%clk 0:00:17]} 37. d8=Q+ {[%clk 0:00:21]}  Kf7 {[%clk 0:00:08]} 38. Qxa8 {[%clk 0:00:22]} 1-0


[Site "https://www.chess.com"]

[Event "Titled Tuesday Blitz August 08 Early 2023"]
[White "Shimanov, Aleksandr"]
[Black "Koshulyan, Egor A."]
[WhiteFideId "4198603"]
[BlackFideId "24237000"]
[WhiteElo "2936"]
[BlackElo "2693"]
[Result "1-0"]
[Round "3"]
[TimeControl "180+1"]
[Date "2023.08.08"]
[WhiteClock "0:01:15"]
[BlackClock "0:00:33"]
[Board "21"]

1. c4 {[%clk 0:03:00]}  e6 {[%clk 0:02:59]} 2. g3 {[%clk 0:02:59]}  d5 {[%clk 0:02:59]} 3. Bg2 {[%clk 0:03:00]}  Nf6 {[%clk 0:03:00]} 4. Nf3 {[%clk 0:03:00]}  dxc4 {[%clk 0:02:50]} 5. Qa4+ {[%clk 0:02:58]}  Nbd7 {[%clk 0:02:43]} 6. Qxc4 {[%clk 0:02:57]}  Nb6 {[%clk 0:02:43]} 7. Qc2 {[%clk 0:02:55]}  c5 {[%clk 0:02:42]} 8. O-O {[%clk 0:02:54]}  Be7 {[%clk 0:02:39]} 9. Rd1 {[%clk 0:02:55]}  O-O {[%clk 0:02:30]} 10. d4 {[%clk 0:02:54]}  cxd4 {[%clk 0:02:30]} 11. Nxd4 {[%clk 0:02:55]}  Qe8 {[%clk 0:02:21]} 12. Nc3 {[%clk 0:02:52]}  a6 {[%clk 0:02:20]} 13. Qb3 {[%clk 0:02:43]}  Nbd7 {[%clk 0:02:11]} 14. Qc2 {[%clk 0:02:11]}  Nb6 {[%clk 0:01:58]} 15. a4 {[%clk 0:02:01]}  Nbd5 {[%clk 0:01:48]} 16. Qb3 {[%clk 0:01:46]}  Nb4 {[%clk 0:01:32]} 17. Bf4 {[%clk 0:01:39]}  Nd7 {[%clk 0:01:15]} 18. Nf3 {[%clk 0:01:24]}  Nc6 {[%clk 0:01:13]} 19. Ne4 {[%clk 0:01:21]}  Qd8 {[%clk 0:00:56]} 20. Ne5 {[%clk 0:01:14]}  Ncxe5 {[%clk 0:00:52]} 21. Bxe5 {[%clk 0:01:15]}  Qb6 {[%clk 0:00:48]} 22. Qxb6 {[%clk 0:01:14]}  Nxb6 {[%clk 0:00:48]} 23. Bd6 {[%clk 0:01:15]}  Bxd6 {[%clk 0:00:43]} 24. Nxd6 {[%clk 0:01:16]}  Rb8 {[%clk 0:00:40]} 25. a5 {[%clk 0:01:15]}  Nd7 {[%clk 0:00:33]} 26. Nxc8 {[%clk 0:01:15]} 1-0


[Site "https://www.chess.com"]

[Event "Titled Tuesday Blitz August 08 Early 2023"]
[White "Rychagov, Andrey"]
[Black "Muradli, Mahammad"]
[WhiteFideId "4119932"]
[BlackFideId "13409301"]
[WhiteElo "2685"]
[BlackElo "2923"]
[Result "0-1"]
[Round "3"]
[TimeControl "180+1"]
[Date "2023.08.08"]
[WhiteClock "0:00:02"]
[BlackClock "0:00:35"]
[Board "22"]

1. d4 {[%clk 0:03:00]}  d6 {[%clk 0:02:59]} 2. Nf3 {[%clk 0:03:00]}  g6 {[%clk 0:02:59]} 3. c4 {[%clk 0:02:59]}  Bg7 {[%clk 0:03:00]} 4. Nc3 {[%clk 0:02:58]}  c5 {[%clk 0:02:54]} 5. d5 {[%clk 0:02:50]}  e6 {[%clk 0:02:54]} 6. e4 {[%clk 0:02:46]}  Ne7 {[%clk 0:02:53]} 7. Bd3 {[%clk 0:02:43]}  exd5 {[%clk 0:02:51]} 8. cxd5 {[%clk 0:02:42]}  a6 {[%clk 0:02:49]} 9. a4 {[%clk 0:02:41]}  Bg4 {[%clk 0:02:50]} 10. h3 {[%clk 0:02:33]}  Bxf3 {[%clk 0:02:49]} 11. Qxf3 {[%clk 0:02:33]}  Nd7 {[%clk 0:02:50]} 12. Qe2 {[%clk 0:02:30]}  Rc8 {[%clk 0:02:41]} 13. O-O {[%clk 0:02:26]}  O-O {[%clk 0:02:39]} 14. Bf4 {[%clk 0:02:09]}  Ne5 {[%clk 0:02:32]} 15. Bc2 {[%clk 0:02:09]}  c4 {[%clk 0:02:31]} 16. a5 {[%clk 0:02:01]}  Rc5 {[%clk 0:02:13]} 17. Bd2 {[%clk 0:01:30]}  Rxa5 {[%clk 0:02:09]} 18. Na4 {[%clk 0:01:20]}  Rb5 {[%clk 0:01:57]} 19. Bc3 {[%clk 0:01:20]}  Qc7 {[%clk 0:01:41]} 20. Rfc1 {[%clk 0:01:17]}  Rc8 {[%clk 0:01:37]} 21. f4 {[%clk 0:01:14]}  Nd7 {[%clk 0:01:37]} 22. Qe3 {[%clk 0:00:56]}  Bxc3 {[%clk 0:01:28]} 23. Qxc3 {[%clk 0:00:55]}  Nb6 {[%clk 0:01:14]} 24. Kh1 {[%clk 0:00:55]}  Nxa4 {[%clk 0:01:12]} 25. Rxa4 {[%clk 0:00:55]}  Rc5 {[%clk 0:01:13]} 26. Qf6 {[%clk 0:00:54]}  Qd8 {[%clk 0:00:56]} 27. Bd1 {[%clk 0:00:44]}  Nc6 {[%clk 0:00:54]} 28. Qc3 {[%clk 0:00:38]}  Nb8 {[%clk 0:00:48]} 29. Bg4 {[%clk 0:00:33]}  R8c7 {[%clk 0:00:45]} 30. Qd4 {[%clk 0:00:26]}  Nd7 {[%clk 0:00:39]} 31. e5 {[%clk 0:00:24]}  dxe5 {[%clk 0:00:35]} 32. fxe5 {[%clk 0:00:02]}  Nb6 {[%clk 0:00:35]} 0-1


[Site "https://www.chess.com"]

[Event "Titled Tuesday Blitz August 08 Early 2023"]
[White "Hoang, Thi Bao Tram"]
[Black "Demchenko, Anton"]
[WhiteFideId "12401102"]
[BlackFideId "4160258"]
[WhiteElo "2680"]
[BlackElo "2913"]
[Result "1-0"]
[Round "3"]
[TimeControl "180+1"]
[Date "2023.08.08"]
[WhiteClock "0:00:14"]
[BlackClock "0:00:00"]
[Board "23"]

1. Nf3 {[%clk 0:02:59]}  Nf6 {[%clk 0:02:56]} 2. g3 {[%clk 0:02:59]}  g6 {[%clk 0:02:53]} 3. Bg2 {[%clk 0:02:58]}  Bg7 {[%clk 0:02:54]} 4. O-O {[%clk 0:02:57]}  O-O {[%clk 0:02:55]} 5. d4 {[%clk 0:02:56]}  d6 {[%clk 0:02:55]} 6. a4 {[%clk 0:02:52]}  a5 {[%clk 0:02:54]} 7. c3 {[%clk 0:02:47]}  Re8 {[%clk 0:02:53]} 8. Na3 {[%clk 0:02:45]}  Nbd7 {[%clk 0:02:48]} 9. Nc4 {[%clk 0:02:34]}  c6 {[%clk 0:02:41]} 10. Re1 {[%clk 0:02:12]}  d5 {[%clk 0:02:35]} 11. Nce5 {[%clk 0:02:06]}  Nxe5 {[%clk 0:02:27]} 12. Nxe5 {[%clk 0:02:07]}  Ng4 {[%clk 0:02:21]} 13. Nxg4 {[%clk 0:02:00]}  Bxg4 {[%clk 0:02:22]} 14. Qb3 {[%clk 0:02:00]}  Qd7 {[%clk 0:02:03]} 15. e4 {[%clk 0:01:55]}  dxe4 {[%clk 0:02:03]} 16. Bxe4 {[%clk 0:01:55]}  Be6 {[%clk 0:02:04]} 17. Qc2 {[%clk 0:01:53]}  Bd5 {[%clk 0:02:04]} 18. Bf4 {[%clk 0:01:51]}  Bxe4 {[%clk 0:02:00]} 19. Rxe4 {[%clk 0:01:43]}  e6 {[%clk 0:01:55]} 20. Rae1 {[%clk 0:01:39]}  b5 {[%clk 0:01:54]} 21. Be5 {[%clk 0:01:31]}  f6 {[%clk 0:01:48]} 22. Bf4 {[%clk 0:01:30]}  Qd5 {[%clk 0:01:43]} 23. R4e2 {[%clk 0:01:19]}  g5 {[%clk 0:01:32]} 24. Bd2 {[%clk 0:01:14]}  Rab8 {[%clk 0:01:18]} 25. Qd3 {[%clk 0:01:00]}  Rb7 {[%clk 0:00:52]} 26. axb5 {[%clk 0:00:47]}  cxb5 {[%clk 0:00:52]} 27. Bc1 {[%clk 0:00:47]}  a4 {[%clk 0:00:50]} 28. Qe4 {[%clk 0:00:37]}  Qxe4 {[%clk 0:00:50]} 29. Rxe4 {[%clk 0:00:37]}  Kf7 {[%clk 0:00:50]} 30. h4 {[%clk 0:00:30]}  h6 {[%clk 0:00:50]} 31. hxg5 {[%clk 0:00:29]}  hxg5 {[%clk 0:00:51]} 32. Kg2 {[%clk 0:00:28]}  Rc7 {[%clk 0:00:45]} 33. Kf3 {[%clk 0:00:22]}  Rc4 {[%clk 0:00:42]} 34. Bd2 {[%clk 0:00:17]}  Rc7 {[%clk 0:00:31]} 35. Ke2 {[%clk 0:00:16]}  Rd7 {[%clk 0:00:31]} 36. Kd1 {[%clk 0:00:16]}  Rd6 {[%clk 0:00:28]} 37. Kc2 {[%clk 0:00:16]}  Rc8 {[%clk 0:00:28]} 38. Kb1 {[%clk 0:00:15]}  Rc4 {[%clk 0:00:24]} 39. f4 {[%clk 0:00:15]}  f5 {[%clk 0:00:23]} 40. R4e2 {[%clk 0:00:14]}  g4 {[%clk 0:00:24]} 41. Be3 {[%clk 0:00:14]}  b4 {[%clk 0:00:23]} 42. Rc1 {[%clk 0:00:14]}  b3 {[%clk 0:00:22]} 43. Rd1 {[%clk 0:00:13]}  Bf6 {[%clk 0:00:20]} 44. Bc1 {[%clk 0:00:12]}  Bd8 {[%clk 0:00:19]} 45. Rd3 {[%clk 0:00:13]}  Bc7 {[%clk 0:00:18]} 46. Rde3 {[%clk 0:00:13]}  Bd8 {[%clk 0:00:15]} 47. Rh2 {[%clk 0:00:13]}  Bf6 {[%clk 0:00:15]} 48. Rhe2 {[%clk 0:00:12]}  Rcc6 {[%clk 0:00:11]} 49. Bd2 {[%clk 0:00:12]}  Rc8 {[%clk 0:00:10]} 50. Bc1 {[%clk 0:00:12]}  Rdc6 {[%clk 0:00:11]} 51. Bd2 {[%clk 0:00:12]}  Rh8 {[%clk 0:00:11]} 52. Re1 {[%clk 0:00:12]}  Rh2 {[%clk 0:00:12]} 53. R3e2 {[%clk 0:00:12]}  Rxe2 {[%clk 0:00:11]} 54. Rxe2 {[%clk 0:00:13]}  Rc4 {[%clk 0:00:11]} 55. Be1 {[%clk 0:00:12]}  Be7 {[%clk 0:00:09]} 56. Bd2 {[%clk 0:00:12]}  Bd6 {[%clk 0:00:10]} 57. Rh2 {[%clk 0:00:13]}  Bf8 {[%clk 0:00:09]} 58. Be3 {[%clk 0:00:12]}  Bg7 {[%clk 0:00:09]} 59. Rh1 {[%clk 0:00:12]}  Rc6 {[%clk 0:00:09]} 60. Rh2 {[%clk 0:00:13]}  Kg6 {[%clk 0:00:10]} 61. Rh1 {[%clk 0:00:13]}  Rc8 {[%clk 0:00:09]} 62. Kc1 {[%clk 0:00:13]}  Kf7 {[%clk 0:00:08]} 63. Kd2 {[%clk 0:00:14]}  Ra8 {[%clk 0:00:04]} 64. Ra1 {[%clk 0:00:14]}  Bf8 {[%clk 0:00:03]} 65. Kd3 {[%clk 0:00:14]}  a3 {[%clk 0:00:04]} 66. bxa3 {[%clk 0:00:15]}  b2 {[%clk 0:00:03]} 67. Rb1 {[%clk 0:00:15]}  Bxa3 {[%clk 0:00:04]} 68. Kc2 {[%clk 0:00:15]}  Ke7 {[%clk 0:00:03]} 69. c4 {[%clk 0:00:15]}  Kd6 {[%clk 0:00:04]} 70. Bd2 {[%clk 0:00:16]}  Kc6 {[%clk 0:00:04]} 71. Bc3 {[%clk 0:00:16]}  Rh8 {[%clk 0:00:02]} 72. Kb3 {[%clk 0:00:15]}  Bd6 {[%clk 0:00:02]} 73. Bxb2 {[%clk 0:00:15]}  Rh3 {[%clk 0:00:03]} 74. Rg1 {[%clk 0:00:15]}  Bxf4 {[%clk 0:00:03]} 75. Bc3 {[%clk 0:00:15]}  Rxg3 {[%clk 0:00:02]} 76. Rd1 {[%clk 0:00:15]}  Bd6 {[%clk 0:00:02]} 77. Ra1 {[%clk 0:00:14]}  f4 {[%clk 0:00:02]} 78. Ra6+ {[%clk 0:00:14]}  Kd7 {[%clk 0:00:03]} 79. c5 {[%clk 0:00:14]}  Bc7 {[%clk 0:00:03]} 80. Ra7 {[%clk 0:00:14]}  Kc6 {[%clk 0:00:03]} 81. Kc4 {[%clk 0:00:15]}  f3 {[%clk 0:00:03]} 82. Ra6+ {[%clk 0:00:15]}  Kd7 {[%clk 0:00:03]} 83. Ra7 {[%clk 0:00:15]}  Kc8 {[%clk 0:00:03]} 84. Ra8+ {[%clk 0:00:15]}  Kb7 {[%clk 0:00:03]} 85. Rf8 {[%clk 0:00:15]}  Rg2 {[%clk 0:00:03]} 86. Rf6 {[%clk 0:00:15]}  f2 {[%clk 0:00:02]} 87. Kb5 {[%clk 0:00:15]}  g3 {[%clk 0:00:02]} 88. c6+ {[%clk 0:00:16]}  Kb8 {[%clk 0:00:01]} 89. Rf8+ {[%clk 0:00:15]}  Ka7 {[%clk 0:00:02]} 90. Bb4 {[%clk 0:00:15]}  Bb6 {[%clk 0:00:01]} 91. Rf7+ {[%clk 0:00:15]}  Kb8 {[%clk 0:00:02]} 92. Kxb6 {[%clk 0:00:15]}  f1=Q {[%clk 0:00:02]} 93. Rxf1 {[%clk 0:00:15]}  Rf2 {[%clk 0:00:03]} 94. Bd6+ {[%clk 0:00:15]}  Kc8 {[%clk 0:00:03]} 95. Ra1 {[%clk 0:00:14]}  Rb2+ {[%clk 0:00:03]} 96. Kc5 {[%clk 0:00:14]}  Rc2+ {[%clk 0:00:03]} 97. Kb5 {[%clk 0:00:14]}  Rb2+ {[%clk 0:00:04]} 98. Ka4 {[%clk 0:00:14]}  g2 {[%clk 0:00:03]} 99. Bh2 {[%clk 0:00:14]}  Kd8 {[%clk 0:00:02]} 100. c7+ {[%clk 0:00:14]}  Kc8 {[%clk 0:00:02]} 101. Ka3 {[%clk 0:00:14]}  Rd2 {[%clk 0:00:00]} 102. Rg1 {[%clk 0:00:14]} 1-0


[Site "https://www.chess.com"]

[Event "Titled Tuesday Blitz August 08 Early 2023"]
[White "Alekseev, Evgeny"]
[Black "Akhmedinov, Satbek"]
[WhiteFideId "4138147"]
[BlackFideId "13714287"]
[WhiteElo "2912"]
[BlackElo "2678"]
[Result "1-0"]
[Round "3"]
[TimeControl "180+1"]
[Date "2023.08.08"]
[WhiteClock "0:00:25"]
[BlackClock "0:00:06"]
[Board "24"]

1. e4 {[%clk 0:03:00]}  c5 {[%clk 0:03:00]} 2. Nf3 {[%clk 0:03:00]}  Nc6 {[%clk 0:03:00]} 3. Bb5 {[%clk 0:02:58]}  g6 {[%clk 0:03:00]} 4. Bxc6 {[%clk 0:02:58]}  dxc6 {[%clk 0:03:01]} 5. d3 {[%clk 0:02:58]}  Bg7 {[%clk 0:03:01]} 6. h3 {[%clk 0:02:57]}  Nf6 {[%clk 0:03:02]} 7. a4 {[%clk 0:02:56]}  Nd7 {[%clk 0:03:02]} 8. a5 {[%clk 0:02:54]}  O-O {[%clk 0:03:03]} 9. O-O {[%clk 0:02:49]}  e5 {[%clk 0:02:59]} 10. Be3 {[%clk 0:02:39]}  Qe7 {[%clk 0:03:00]} 11. Qd2 {[%clk 0:02:21]}  Re8 {[%clk 0:02:57]} 12. Bh6 {[%clk 0:02:19]}  Bh8 {[%clk 0:02:57]} 13. Na3 {[%clk 0:02:16]}  b5 {[%clk 0:02:56]} 14. axb6 {[%clk 0:02:10]}  axb6 {[%clk 0:02:56]} 15. Nc4 {[%clk 0:02:09]}  Ba6 {[%clk 0:02:57]} 16. b3 {[%clk 0:02:07]}  f5 {[%clk 0:02:49]} 17. exf5 {[%clk 0:02:04]}  Bxc4 {[%clk 0:02:46]} 18. Rxa8 {[%clk 0:01:56]}  Rxa8 {[%clk 0:02:47]} 19. f6 {[%clk 0:01:45]}  Bxf6 {[%clk 0:02:41]} 20. bxc4 {[%clk 0:01:45]}  Qd6 {[%clk 0:02:21]} 21. Qe2 {[%clk 0:01:41]}  Ra4 {[%clk 0:02:13]} 22. Nd2 {[%clk 0:01:39]}  Bg7 {[%clk 0:02:10]} 23. Ne4 {[%clk 0:01:38]}  Qe6 {[%clk 0:02:10]} 24. Be3 {[%clk 0:01:32]}  Nf6 {[%clk 0:02:08]} 25. f3 {[%clk 0:01:29]}  Nh5 {[%clk 0:02:03]} 26. Rb1 {[%clk 0:01:29]}  Nf4 {[%clk 0:01:59]} 27. Qd2 {[%clk 0:01:29]}  Ra6 {[%clk 0:01:10]} 28. g3 {[%clk 0:01:25]}  Nxh3+ {[%clk 0:01:07]} 29. Kg2 {[%clk 0:01:24]}  g5 {[%clk 0:00:52]} 30. Rh1 {[%clk 0:01:17]}  Nf4+ {[%clk 0:00:53]} 31. gxf4 {[%clk 0:01:16]}  gxf4 {[%clk 0:00:54]} 32. Bf2 {[%clk 0:01:08]}  Qg6+ {[%clk 0:00:53]} 33. Kf1 {[%clk 0:01:08]}  Ra1+ {[%clk 0:00:53]} 34. Be1 {[%clk 0:01:08]}  h5 {[%clk 0:00:42]} 35. Rg1 {[%clk 0:01:07]}  Qh6 {[%clk 0:00:39]} 36. Qg2 {[%clk 0:01:04]}  h4 {[%clk 0:00:40]} 37. Ke2 {[%clk 0:01:01]}  h3 {[%clk 0:00:39]} 38. Qg4 {[%clk 0:00:57]}  h2 {[%clk 0:00:35]} 39. Rh1 {[%clk 0:00:57]}  b5 {[%clk 0:00:19]} 40. cxb5 {[%clk 0:00:52]}  cxb5 {[%clk 0:00:20]} 41. Qg2 {[%clk 0:00:52]}  c4 {[%clk 0:00:21]} 42. Rxh2 {[%clk 0:00:51]}  cxd3+ {[%clk 0:00:21]} 43. cxd3 {[%clk 0:00:51]}  Qc6 {[%clk 0:00:18]} 44. Bc3 {[%clk 0:00:37]}  b4 {[%clk 0:00:17]} 45. Bxa1 {[%clk 0:00:35]}  Qc2+ {[%clk 0:00:16]} 46. Nd2 {[%clk 0:00:35]}  b3 {[%clk 0:00:16]} 47. Qg4 {[%clk 0:00:29]}  b2 {[%clk 0:00:12]} 48. Qe6+ {[%clk 0:00:26]}  Kf8 {[%clk 0:00:12]} 49. Bxb2 {[%clk 0:00:26]}  Qxb2 {[%clk 0:00:12]} 50. Qc8+ {[%clk 0:00:25]}  Kf7 {[%clk 0:00:10]} 51. Qd7+ {[%clk 0:00:25]}  Kf8 {[%clk 0:00:06]} 52. Rh7 {[%clk 0:00:25]} 1-0


[Site "https://www.chess.com"]

[Event "Titled Tuesday Blitz August 08 Early 2023"]
[White "Zakhartsov, Vladimir"]
[Black "Golubev, Mikhail"]
[WhiteFideId "4145097"]
[BlackFideId "14100983"]
[WhiteElo "2910"]
[BlackElo "2672"]
[Result "1-0"]
[Round "3"]
[TimeControl "180+1"]
[Date "2023.08.08"]
[WhiteClock "0:00:17"]
[BlackClock "0:00:00"]
[Board "25"]

1. d4 {[%clk 0:03:00]}  Nf6 {[%clk 0:02:59]} 2. c4 {[%clk 0:03:00]}  g6 {[%clk 0:02:59]} 3. Nc3 {[%clk 0:02:55]}  Bg7 {[%clk 0:03:00]} 4. e4 {[%clk 0:02:53]}  d6 {[%clk 0:03:00]} 5. h3 {[%clk 0:02:53]}  Nbd7 {[%clk 0:02:59]} 6. Be3 {[%clk 0:02:51]}  e5 {[%clk 0:02:57]} 7. d5 {[%clk 0:02:51]}  h5 {[%clk 0:02:52]} 8. Bd3 {[%clk 0:02:38]}  Nc5 {[%clk 0:02:21]} 9. Bc2 {[%clk 0:02:36]}  a5 {[%clk 0:02:21]} 10. Nf3 {[%clk 0:02:35]}  Qe7 {[%clk 0:01:44]} 11. a3 {[%clk 0:02:28]}  Bh6 {[%clk 0:01:39]} 12. Bxh6 {[%clk 0:02:11]}  Rxh6 {[%clk 0:01:40]} 13. b4 {[%clk 0:02:11]}  Na6 {[%clk 0:01:39]} 14. O-O {[%clk 0:02:08]}  Kf8 {[%clk 0:01:33]} 15. Nd2 {[%clk 0:02:02]}  Kg7 {[%clk 0:01:30]} 16. Nb3 {[%clk 0:02:02]}  axb4 {[%clk 0:01:21]} 17. axb4 {[%clk 0:02:03]}  Rb8 {[%clk 0:01:21]} 18. b5 {[%clk 0:01:48]}  Nc5 {[%clk 0:01:20]} 19. Nxc5 {[%clk 0:01:48]}  dxc5 {[%clk 0:01:21]} 20. b6 {[%clk 0:01:44]}  cxb6 {[%clk 0:01:21]} 21. Rb1 {[%clk 0:01:43]}  g5 {[%clk 0:00:52]} 22. Rxb6 {[%clk 0:01:30]}  h4 {[%clk 0:00:37]} 23. Qc1 {[%clk 0:01:06]}  Nh5 {[%clk 0:00:30]} 24. Rxh6 {[%clk 0:00:57]}  Kxh6 {[%clk 0:00:31]} 25. Ne2 {[%clk 0:00:51]}  Bd7 {[%clk 0:00:19]} 26. Bd3 {[%clk 0:00:41]}  Nf4 {[%clk 0:00:15]} 27. Nxf4 {[%clk 0:00:41]}  gxf4 {[%clk 0:00:16]} 28. Qd1 {[%clk 0:00:30]}  Rg8 {[%clk 0:00:15]} 29. Qf3 {[%clk 0:00:30]}  Qd6 {[%clk 0:00:09]} 30. Rb1 {[%clk 0:00:28]}  b6 {[%clk 0:00:08]} 31. Bf1 {[%clk 0:00:24]}  f6 {[%clk 0:00:06]} 32. Be2 {[%clk 0:00:22]}  Rg5 {[%clk 0:00:04]} 33. Qb3 {[%clk 0:00:19]}  Qe7 {[%clk 0:00:00]} 34. Kh2 {[%clk 0:00:17]} 1-0


[Site "https://www.chess.com"]